Cogmind - Beta 13 @@@ ROGUE MODE // 2024.07.09 @ 22:32:04 Player: Johnny5001 Result: Destroyed by S-10 Pest with Light Assault Rifle Performance ------------- Evolutions (0) 0 Regions Visited (2) 400 Robots Destroyed (16) 80 Value Destroyed (459) 459 Prototype IDs (10) 200 Alien Tech Used (0) 0 Bonus (0) 0 TOTAL SCORE: 1139 Bonus ------- None Cogmind --------- Core Integrity 0/250 Matter 290/300 Energy 71/125 System Corruption 0% Temperature Cool (5) Movement Walking (190) Ox1 Location -10/Subcaves Parts ------- > --- POWER (1+1) ------ Light Ion Engine > --- PROPULSION (2) --- Aluminum Leg Aluminum Leg > --- UTILITY (2) ------ Small Storage Unit Hardened Light Armor Plating > --- WEAPON (2) ------- Powered Cannon > --- INVENTORY (8) ---- Aluminum Leg Subdweller Monowheel Disposable Heat Sink Disposable Heat Sink Seismic Detector Hardened Light Armor Plating Subdweller Machine Gun Subdweller Machine Gun Peak State ------------ > --- POWER ------------ Light Ion Engine > --- PROPULSION ------- Aluminum Leg Aluminum Leg > --- UTILITY ---------- Small Storage Unit Hardened Light Armor Plating > --- WEAPON ----------- Powered Cannon > --- INVENTORY -------- Aluminum Leg Subdweller Monowheel Disposable Heat Sink Disposable Heat Sink Small Storage Unit Seismic Detector Hardened Light Armor Plating Subdweller Machine Gun [Rating: 21] Favorites ----------- Power Light Ion Engine Engine Light Ion Engine Propulsion Light Treads Treads Light Treads Leg Aluminum Leg Utility Small Storage Unit Device Seismic Detector Storage Small Storage Unit Protection Hardened Light Armor Plating Weapon Assault Rifle Energy Gun Medium Laser Energy Cannon Powered Cannon Ballistic Gun Assault Rifle Build | -11 -10 -10 ------- Run | Yrd Mat Sub Slots Evolved . | . . . Power . | . . . Propulsion . | . . . Utility . | . . . Weapon . | . . . Parts Attached 25 | 2 13 10 Power 2 | . 1 1 Engine 2 | . 1 1 Core . | . . . Reactor . | . . . Propulsion 5 | . 3 2 Treads 3 | . 3 . Leg 2 | . . 2 Wheel . | . . . Hover . | . . . Flight . | . . . Utility 12 | 1 7 4 Device 5 | 1 3 1 Storage 1 | . . 1 Processor . | . . . Hackware . | . . . Protection 6 | . 4 2 Artifact . | . . . Weapon 6 | 1 2 3 Energy Gun 2 | . 1 1 Energy Cannon 1 | . . 1 Ballistic Gun 3 | 1 1 1 Ballistic Cannon . | . . . Launcher . | . . . Special Weapon . | . . . Impact Weapon . | . . . Slashing Weapon . | . . . Piercing Weapon . | . . . Special Melee Weapon . | . . . Unidentified Prototypes . | . . . Parts Lost 7 | . 1 6 Power 1 | . . 1 Propulsion 2 | . . 2 Utility 1 | . . 1 Weapon 3 | . 1 2 Highest Loss Streak 6 | . 1 6 To Critical Strikes 1 | . . 1 Average Slot Usage (%) 95 | . 99 85 Engine 13 | . 14 12 Treads 18 | . 26 2 Leg 8 | . 1 23 Device 9 | . 10 6 Storage 13 | . 14 12 Protection 4 | . 3 6 Energy Gun 2 | . . 7 Energy Cannon 1 | . . 6 Ballistic Gun 20 | . 27 5 Naked Turns . | . . . Heaviest Build 19 | 13 17 19 Greatest Support 40 | 20 40 40 Greatest Overweight (x) . | . . . Average Overweight (x) . | . . . Largest Inventory Capacity 8 | 8 8 8 Average Capacity 8 | 8 8 8 Most Carried 8 | 7 8 8 Average Carried 7 | 6 7 7 Final Capacity 8 | 8 8 8 Final Carried 8 | 7 8 8 Class Distribution -------------------- 100% | Mutant Dominant Class ---------------- Mutant | -10/Materials Mutant | -10/Subcaves Resources | -11 -10 -10 ----------- Run | Yrd Mat Sub Matter Collected 681 | 228 345 108 Remotely . | . . . Salvage Created 507 | 10 341 156 Parts 24 | 2 16 6 Haulers Intercepted . | . . . Recyclers Shooed 1 | . 1 . Parts Field Recycled . | . . . Retrieved Matter . | . . . Parts Self-Destructed . | . . . Prevented . | . . . Kills | -11 -10 -10 ------- Run | Yrd Mat Sub Combat Hostiles Destroyed 13 | . 9 4 Guns 13 | . 9 4 Classes Destroyed 5 | 1 3 1 Tunneler 1 | 1 . . Watcher 2 | . 2 . Swarmer 3 | . 3 . Grunt 6 | . 6 . Subdweller 4 | . . 4 Best Kill Streak 3 | 1 3 3 Combat Bots Only 3 | . 3 3 Max Kills in Single Turn 1 | 1 1 1 Gunslinging . | . . . Exploded . | . . . Melee . | . . . Uniques/NPCs Destroyed . | . . . Combat | -11 -10 -10 -------- Run | Yrd Mat Sub Hostile Shots Fired 135 | . 57 78 Missed 38 | . 13 25 Damage Taken 1665 | . 606 1059 Core 253 | . 95 158 Absorbed by Shields . | . . . Regen/Repaired (Parts) 113 | . 113 . Core Remaining (%) 100 | 100 . . Volleys Fired 77 | 3 39 35 Largest 2 | 2 2 2 Hottest 115 | 40 70 115 Shots Fired 139 | 6 78 55 Gun 137 | 6 78 53 Cannon 2 | . . 2 Launcher . | . . . Special . | . . . Kinetic 96 | 6 74 16 Thermal 43 | . 4 39 Explosive . | . . . Electromagnetic . | . . . Robot Hit Streak 31 | 1 9 31 Robot Miss Streak 3 | 2 3 3 Penetration Max . | . . . Secondary Targets 2 | . 2 . Max Gunslinging Chain 1 | . 1 . Shots Hit Robots 92 | 2 53 37 Core Hits 30 | 1 21 8 Critical Kills . | . . . Critical Parts Destroyed . | . . . Critical Strikes 1 | . . 1 Burn 1 | . . 1 Melee Attacks . | . . . Impact . | . . . Slashing . | . . . Piercing . | . . . Sneak Attacks . | . . . Combat Hostiles . | . . . Follow-up Attacks . | . . . Damage Inflicted 1221 | 21 684 516 Guns 1217 | 21 680 516 Cannons . | . . . Explosions . | . . . Melee . | . . . Ramming 4 | . 4 . Kinetic 702 | 21 631 50 Thermal 515 | . 49 466 Explosive . | . . . Electromagnetic . | . . . Impact . | . . . Slashing . | . . . Piercing . | . . . Highest Corruption . | . . . Average Corruption . | . . . Corruption Purged . | . . . Corruption Blocked . | . . . Overload Shots . | . . . Overflow Damage . | . . . Projectiles . | . . . Explosions . | . . . Melee . | . . . Knockbacks . | . . . Impact . | . . . Kinetic . | . . . Secondary . | . . . Self-Inflicted Damage . | . . . Shots . | . . . Rammed 2 | . 2 . Targets Rammed 2 | . 2 . Kicked . | . . . Crushed . | . . . Highest Temperature 140 | . 140 54 Average Temperature 31 | . 38 23 Received Heat Transfer 288 | . 258 30 Siege Activations . | . . . Robots Corrupted . | . . . Combat Hostiles . | . . . Parts Fried . | . . . Impact Corruptions . | . . . Robots Melted . | . . . Combat Hostiles . | . . . Parts Melted 2 | . 1 1 Heat Transferred 1480 | . 148 1332 Parts Sabotaged . | . . . Parts Stolen . | . . . Parts Stripped . | . . . Power Chain Reactions . | . . . Alert | -11 -10 -10 ------- Run | Yrd Mat Sub Peak Influence 125 | 5 125 . Initial 3 | . 3 . Average 45 | 2 47 . Maximum Alert Level . | . . . Low Security (%) 100 | 100 100 . Level 1 . | . . . Level 2 . | . . . Level 3 . | . . . Level 4 . | . . . Level 5 . | . . . High Security . | . . . Max Security . | . . . Squads Dispatched 2 | . 2 . Investigation 1 | . 1 . Extermination . | . . . Reinforcement 1 | . 1 . Assault . | . . . Garrison . | . . . Intercept . | . . . Searches Triggered . | . . . Construction Impeded . | . . . Haulers Reinforced . | . . . Active Scanning Responses . | . . . Cargo Convoy Interrupts . | . . . Stealth | -11 -10 -10 --------- Run | Yrd Mat Sub Distress Signals 2 | . 2 . Communications Jammed . | . . . Distress Signals . | . . . Times Spotted 26 | . 20 6 Peak Tracking Total 4 | . 4 4 Tactical Retreats 1 | . 1 . Traps | -11 -10 -10 ------- Run | Yrd Mat Sub Traps Triggered 2 | . 2 . Indirectly . | . . . Trap Hack Attempts . | . . . Triggered . | . . . Disarmed . | . . . Reprogrammed . | . . . Reused . | . . . Traps Extracted . | . . . Installed . | . . . Triggered . | . . . Machines | -11 -10 -10 ---------- Run | Yrd Mat Sub Machines Disabled 1 | . . 1 Max in Single Turn 1 | . . 1 Machines Repaired . | . . . Machines Dismantled . | . . . Machines Sabotaged . | . . . Overloaded Fab Kills . | . . . Hacking | -11 -10 -10 --------- Run | Yrd Mat Sub Machines Accessed 6 | . 5 1 Terminals 4 | . 4 . Fabricators . | . . . Repair Stations 1 | . 1 . Recycling Units . | . . . Scanalyzers . | . . . Garrison Access . | . . . Total Hacks 16 | . 15 1 Successful 9 | . 8 1 Failed 7 | . 7 . Catastrophic 1 | . 1 . Database Lockouts . | . . . Manual 10 | . 8 2 Terminals 13 | . 13 . Fabricators . | . . . Repair Stations 2 | . 2 . Recycling Units . | . . . Scanalyzers . | . . . Garrison Access . | . . . Terminal Hacks 5 | . 4 1 Locate Traps 1 | . 1 . Recall Investigation 1 | . 1 . Zone Layout 2 | . 2 . Derelict Proto ID Bank 1 | . . 1 Fabricator Hacks . | . . . Repair Station Hacks 2 | . 2 . Scan Component 1 | . 1 . Repair 1 | . 1 . Recycling Unit Hacks . | . . . Scanalyzer . | . . . Garrison Access Hacks . | . . . Unauthorized Hacks 2 | . 2 . Terminals 2 | . 2 . Botnet 2 | . 2 . Fabricators . | . . . Repair Stations . | . . . Recycling Units . | . . . Scanalyzers . | . . . Garrison Access . | . . . Data Cores Recovered . | . . . Used . | . . . Hacking Detections 4 | . 4 . Full Trace Events . | . . . Feedback Events . | . . . Feedback Blocked . | . . . Robot Schematics Acquired . | . . . Robots Built . | . . . Authchips . | . . . Time . | . . . Total Robot Build Rating . | . . . Part Schematics Acquired . | . . . Parts Built . | . . . Authchips . | . . . Time . | . . . Total Part Build Rating . | . . . Parts Repaired 1 | . 1 . Time 26 | . 26 . Parts Recycled . | . . . Recycled Matter . | . . . Retrieved Matter . | . . . Retrieved Components . | . . . Parts Scanalyzed . | . . . Part Schematics Acquired . | . . . Parts Damaged . | . . . Bothacking | -11 -10 -10 ------------ Run | Yrd Mat Sub Used RIF Installer . | . . . Robots Hacked . | . . . Non-combat . | . . . Combat . | . . . Robot Hacks Applied . | . . . Relay Couplers Released . | . . . Fabnet Peak Effective % . | . . . Robots Rewired . | . . . Allies Hacked . | . . . Hacks Repelled . | . . . Allies | -11 -10 -10 -------- Run | Yrd Mat Sub Total Allies . | . . . Largest Group . | . . . Highest-Rated Group . | . . . Highest-Rated Ally . | . . . Total Orders . | . . . Ally Attacks . | . . . Total Damage . | . . . Kills . | . . . Allies Corrupted . | . . . Allies Melted . | . . . Intel | -11 -10 -10 ------- Run | Yrd Mat Sub Robot Analysis Total . | . . . Derelict Logs Recovered . | . . . Drone Launches . | . . . Drone Recoveries . | . . . Exploration | -11 -10 -10 ------------- Run | Yrd Mat Sub Turns Passed 2030 | 55 1369 606 Spaces Moved 908 | 33 476 399 Core . | . . . Treads 455 | . 451 4 Legs 453 | 33 25 395 Wheels . | . . . Hover . | . . . Flight . | . . . Fastest Speed 120 | 120 120 120 Average Speed 140 | 120 157 120 Slowest Speed 160 | 120 160 160 Overloaded Moves . | . . . Propulsion Burnouts . | . . . Robots Hopped . | . . . Cave-ins Triggered . | . . . Exploration Rate (%) 30 | 4 72 16 Regions Visited 2 Branch Regions 1 Pre-discovered Areas . | . . . Known Exits Taken . | . . . Unknown Exits Taken 2 | 1 1 . Scrap Searched . | . . . Spaces Dug . | . . . Terrain Destroyed 1 | . . 1 Melee . | . . . Projectile 1 | . . 1 AOE . | . . . Terrain Rammed . | . . . Walls Destroyed . | . . . Machines Disabled . | . . . Actions | -11 -10 -10 --------- Run | Yrd Mat Sub Total 1521 | 41 1011 469 Wait 493 | 3 473 17 Move 906 | 32 475 399 Hop . | . . . Pick Up 11 | 1 5 5 Fast Attach 5 | 1 2 2 Attach 6 | . 1 5 Detach . | . . . Swap 14 | 1 10 3 Drop 7 | . 4 3 Fire 77 | 3 39 35 Melee . | . . . Ram . | . . . Kick . | . . . Crush 2 | . 2 . Escape Stasis . | . . . Rewire . | . . . Trap . | . . . Miscellaneous . | . . . Route ------- -11/Scrapyard -10/Materials (discovered 3 exits: [*Mat] / [*Min] / *Sub) -10/Subcaves History --------- Turn | Location | Event 3 | -11/Scrapyard | Discovered new exit (range 3) 56 | -11/Scrapyard | Entered Materials 288 | -10/Materials | Discovered new exit (range 8) 302 | -10/Materials | Build established: Mutant 435 | -10/Materials | Repaired Lgt. Treads 715 | -10/Materials | Discovered new exit (range 14) 1402 | -10/Materials | Discovered new exit (range 7) 1425 | -10/Materials | Entered Subcaves 1426 | -10/Subcaves | Ambushed by Subdwellers from Twisted Machinery 1426 | -10/Subcaves | Ambushed by Subdwellers from Twisted Machinery 1451 | -10/Subcaves | Core integrity fell below 50% 1489 | -10/Subcaves | Core integrity fell below 20% 1520 | -10/Subcaves | Lost 6 parts (1p2n1u2w) 1698 | -10/Subcaves | Visited 4L-MR0's lab 1710 | -10/Subcaves | Found Powered Cannon 1711 | -10/Subcaves | Attached Powered Cannon, gained temporary slot: Power 2031 | -10/Subcaves | Destroyed by S-10 Pest with Light Assault Rifle Last Messages --------------- Gun Armor Power Bank Rainbow Chip VL-GR5's Exoskeleton "Deathgrip" Powered Cannon 01704_ Testing Chamber breached. 01709_ Dropped Sub. Machine Gun. 01709_ Dropped Med. Laser. 01710_ Acquired Powered Cannon. 01711_ Core temporarily expanded with Power slot. 01713_ Subatomizers dissect the Sub. Machine Gun. 01713_ Dropped Sml. Storage Unit. 01714_ Acquired Sub. Machine Gun. 01721_ 4L-MR0 mumbles to no one in particular: "Damn Subs sneaking around stealing my stuff." 01880_ Acquired 35 matter. 01882_ Acquired 3 matter. 01896_ M9-LSM(u) tweaks Twisted Machinery. Map ----- +----------------------------------------------------+ | ?????????????????????????????????????????????????? | | ?????????????????????????????????????????????????? | | ?????????????????????????????????????????????????? | | ?????????????????????????????????????????????????? | | ?????????????????????????????????????????????????? | | ?????????????????????????????????????????????????? | | ?????????????????????????????????????????????????? | | ?????????????????????????????????????????????????? | | ?????????????????????????????????????????????????? | | ?????????????????????????????????????????????????? | | ?????????????????????????????????????????????????? | | ????????????????????????????????????? ???????????? | | ####???????????????????????????????? ?????????? | | # #????????????????????###????????? ????????? | | #????????????????????# ####### ???????? | | ####?????????????????# ???????? | | #?????????????????# #????????????? | | ##????????????????## # #?????????????? | | # ##?????????????????# #?? ##?????????????? | | # #??????????????????## #??? #??????????????? | | ##???#########??????# ##? g #??????????????? | | ##### ## #??????# ## #???????????????? | | ## ## #?????## # #????????????????? | | ## #???### s #?????????????????? | | ### ## #??## ## ; ##?????????????????? | | #?# ## #### @ ####??????????????????? | | ?## ##### ## #?????????????????????? | | ## #???# #?????????????????????? | | # ##??## ###?????????????????????? | | # ##??# ##??????????????????????? | | # #### ##?????????????????????? | | #?????????????????????? | | ## ??????????????? | | ## #????????????? | | ###???????????????? | | ##### ### ##?????????????????? | | ????###?####### ##??????????????????? | | ??????????????# #???????????????????? | | ??????????????## #???????????????????? | | ???????????????## ### #???????????????????? | | ????????????????# #?## ###???????????????????? | | ????????????????# #?? ###?????????????????????? | | ????????????????## #?##???????????????????????? | | ?????????????????## ##??????????????????????????? | | ??????????????????####???????????????????????????? | | ?????????????????????????????????????????????????? | | ?????????????????????????????????????????????????? | | ?????????????????????????????????????????????????? | | ?????????????????????????????????????????????????? | | ?????????????????????????????????????????????????? | +----------------------------------------------------+ Best States ------------- Heat Dissipation 25 Energy Generation 10 Energy Capacity 125 Matter Stores 300 Matter Capacity 300 Sight Range 16 Terrain Scan Density 10 Armor Coverage 150 Evasion (%) 55 Recoil Reduction 2 Item Schematics ----------------- None Robot Schematics ------------------ None Fabricated ------------ Nothing Alien Tech Used ----------------- None Achievements -------------- None Challenges ------------ None Game ------ Seed ForceHelicalTriangulator Manual? 0 Play Time 00:24:17 Cumulative 47.7 hours Start 2024.07.09 @ 22:04:18 End 2024.07.09 @ 22:32:04 Sessions 1 Manual Loads 0 Difficulty Rogue Special Mode None Game No. 32 Rogue 32 Adventurer 0 Explorer 0 Win Type - Total 4 Types 3/0/0/1/0/0/0/0/0 Lore% 42 Gallery% 44 Achievement% 42 Wizard Run 0 Options --------- Layout 1 ASCII 0 Keyboard 0 Movement Mouse Keybinds 0 Fullscreen 1 Font 24/Smallcaps Map View 50x35 Zoom Use 0% Tactical HUD 1 Map Filters NONE Filters NONE Steam 0 RUN: 71778ace-221b-4e9f-a2bc-0301feb1baa7